Cogmind - Beta 16.1 @@@ ROGUE MODE // 2026.03.10 @ 15:25:41 Player: TheSkyeDoctor Result: Destroyed by G-47 Trooper with Particle Gun Performance ------------- Evolutions (2) 1000 Regions Visited (3) 600 Robots Destroyed (43) 215 Value Destroyed (1204) 1204 Prototype IDs (0) 0 Alien Tech Used (0) 0 Bonus (0) 0 TOTAL SCORE: 3019 Bonus ------- None Cogmind --------- Core Integrity 0/550 Matter 292/300 Energy 99/100 System Corruption 0% Temperature Cool (9) Movement Core (100) Ox1 Location -8/Materials Parts ------- > --- POWER (1) -------- (None) > --- PROPULSION (3) --- (None) > --- UTILITY (4) ------ Improved Terrain Scan Processor Makeshift Hacking Suite Makeshift System Shield > --- WEAPON (3) ------- Great Maul > --- INVENTORY (5) ---- Large Storage Unit Scrap Shield Multitool Peak State ------------ > --- POWER ------------ Light Deuterium Engine > --- PROPULSION ------- Wheel Compact Wheel Compact Wheel > --- UTILITY ---------- Large Storage Unit Recoil Stabilizer Makeshift Hacking Suite Makeshift System Shield > --- WEAPON ----------- Subdweller Beam Cannon Battle Rifle Minigun > --- INVENTORY -------- Nuclear Core Compact Wheel Cesium-ion Thruster Scrap Shield Subdweller Machine Gun Subdweller Shrapnel Launcher Multitool [Rating: 26] Favorites ----------- Power Ion Engine Engine Ion Engine Power Core Nuclear Core Propulsion Compact Wheel Treads Light Treads Wheel Compact Wheel Flight Unit Cesium-ion Thruster Utility Seismic Detector Device Seismic Detector Storage Small Storage Unit Processor Improved Terrain Scan Processor Hackware Makeshift Hacking Suite Weapon Light Assault Rifle Energy Gun Small Laser Energy Cannon Subdweller Beam Cannon Ballistic Gun Light Assault Rifle Launcher Subdweller Shrapnel Launcher Special Weapon Multitool Impact Weapon Great Maul Build | -11 -10 -10 -8 ------- Run | Yrd Mat Sub Mat Slots Evolved 4 | . . . 4 Power . | . . . . Propulsion 1 | . . . 1 Utility 2 | . . . 2 Weapon 1 | . . . 1 Parts Attached 31 | 7 . 8 16 Power 5 | 1 . 2 2 Engine 4 | 1 . 2 1 Core 1 | . . . 1 Reactor . | . . . . Propulsion 8 | 2 . 2 4 Treads 2 | 2 . . . Leg . | . . . . Wheel 5 | . . 2 3 Hover . | . . . . Flight 1 | . . . 1 Utility 9 | 2 . . 7 Device 4 | 1 . . 3 Storage 2 | 1 . . 1 Processor 1 | . . . 1 Hackware 2 | . . . 2 Protection . | . . . . Artifact . | . . . . Weapon 9 | 2 . 4 3 Energy Gun 1 | 1 . . . Energy Cannon 1 | . . 1 . Ballistic Gun 4 | 1 . 2 1 Ballistic Cannon . | . . . . Launcher 1 | . . . 1 Special Weapon 1 | . . 1 . Impact Weapon 1 | . . . 1 Slashing Weapon . | . . . . Piercing Weapon . | . . . . Special Melee Weapon . | . . . . Unidentified Prototypes . | . . . . Parts Lost 19 | . . 3 16 Power 4 | . . 1 3 Propulsion 8 | . . 2 6 Utility 3 | . . . 3 Weapon 4 | . . . 4 Highest Loss Streak 7 | . . 1 7 To Critical Strikes . | . . . . Average Backups 5 | 2 3 6 6 Power 1 | . 1 1 . Propulsion . | 1 2 . 1 Utility 1 | . . 1 1 Weapon 1 | . . 1 1 Tool/Special . | . . . . Unused Backups 3 | . . 2 1 Power . | . . . . Propulsion . | . . . . Utility 2 | . . 1 1 Weapon 1 | . . 1 . Tool/Special . | . . . . Average Slot Usage (%) 91 | . 100 97 75 Engine 11 | . 14 13 4 Treads 5 | . 28 5 . Wheel 17 | . . 20 16 Device 12 | . 14 14 7 Storage 12 | . 14 14 7 Hackware 5 | . . . 17 Energy Gun 5 | . 14 6 . Energy Cannon 6 | . . 7 5 Ballistic Gun 13 | . 14 14 10 Peak Build Rating 26 | 7 7 10 26 Average Rating 11 | 4 7 8 19 On Entrance 6 | . 7 7 10 Avg Prop Armor Cover (%) . | . . . . Naked Turns . | . . . . Heaviest Build 39 | 13 13 21 39 Greatest Support 42 | 40 40 40 42 Greatest Overweight (x) 3 | . . . 3 Average Overweight (x) . | . . . . Largest Inventory Capacity 15 | 8 8 8 15 Average Capacity 9 | 6 8 8 12 Most Carried 11 | 3 3 8 11 Average Carried 6 | 2 3 7 7 Final Capacity 8 | 8 8 8 5 Final Carried 7 | 3 3 7 4 Class Distribution -------------------- 72% | Mutant 15% | Hacker-Mutant 12% | Hacker-Gunner Dominant Class ---------------- Mutant | -10/Materials Mutant | -10/Subcaves Hacker-Mutant | -8/Materials Resources | -11 -10 -10 -8 ----------- Run | Yrd Mat Sub Mat Matter Collected 955 | 281 17 164 493 Remotely . | . . . . Salvage Created 1401 | 149 131 367 754 Parts 73 | 7 7 16 43 Haulers Intercepted . | . . . . Recyclers Shooed . | . . . . Parts Field Recycled . | . . . . Retrieved Matter . | . . . . Parts Self-Destructed 2 | . . 2 . Prevented . | . . . . Parts Restored . | . . . . Kills | -11 -10 -10 -8 ------- Run | Yrd Mat Sub Mat Combat Hostiles Destroyed 33 | . 5 8 20 Melee 1 | . . . 1 Guns 23 | . 5 5 13 Cannons 4 | . . 3 1 AOE 2 | . . . 2 Classes Destroyed 11 | 2 2 2 5 Worker 1 | . . . 1 Builder 1 | . . . 1 Tunneler 4 | 3 . . 1 Recycler 2 | 1 . . 1 Mechanic 1 | . . . 1 Watcher 1 | . . . 1 Swarmer 10 | . 3 . 7 Grunt 13 | . 2 1 10 Duelist 1 | . . . 1 Sentry 3 | . . 1 2 Subdweller 6 | . . 6 . Best Kill Streak 11 | 4 3 2 11 Combat Bots Only 6 | . 3 2 6 Max Kills in Single Turn 2 | 1 2 1 2 Gunslinging 1 | . 1 . . Exploded 1 | . . . 1 Melee 1 | . . . 1 Uniques/NPCs Destroyed . | . . . . Combat | -11 -10 -10 -8 -------- Run | Yrd Mat Sub Mat Hostile Shots Fired 212 | . 33 42 137 Missed 57 | . 12 18 27 Hits 155 | . 21 24 110 Projectile 155 | . 21 24 110 Critical Strikes 6 | . . 1 5 Damage Taken 2443 | . 245 477 1721 Core 720 | . 27 135 558 Absorbed by Shields . | . . . . Core Remaining (%) 67 | 100 . 35 . Volleys Fired 149 | 11 17 64 57 Largest 3 | 2 2 2 3 Hottest 135 | 60 60 105 135 Shots Fired 256 | 22 34 95 105 Gun 210 | 22 34 60 94 Cannon 40 | . . 33 7 Launcher 4 | . . . 4 Special 2 | . . 2 . Kinetic 170 | 11 17 44 98 Thermal 86 | 11 17 51 7 Explosive . | . . . . Electromagnetic . | . . . . Robot Hit Streak 15 | 7 15 12 14 Robot Miss Streak 4 | 2 2 4 4 Penetration Max . | . . . . Secondary Targets 3 | . 1 . 2 Max Gunslinging Chain 1 | . 1 . 1 Shots Hit Robots 168 | 16 28 49 75 Core Hits 67 | 7 10 17 33 Critical Kills 1 | . . . 1 Critical Parts Destroyed 1 | . . . 1 Critical Strikes 2 | . . . 2 Smash 2 | . . . 2 Melee Attacks 13 | . . . 13 Impact 13 | . . . 13 Slashing . | . . . . Piercing . | . . . . Sneak Attacks 1 | . . . 1 Combat Hostiles 1 | . . . 1 Follow-up Attacks . | . . . . Damage Inflicted 3472 | 165 266 659 2382 Guns 1852 | 165 266 409 1012 Cannons 382 | . . 250 132 Explosions 765 | . . . 765 Melee 473 | . . . 473 Ramming . | . . . . Kinetic 2225 | 68 90 290 1777 Thermal 774 | 97 176 369 132 Explosive . | . . . . Electromagnetic . | . . . . Impact 473 | . . . 473 Slashing . | . . . . Piercing . | . . . . Highest Corruption . | . . . . Average Corruption . | . . . . Corruption Purged . | . . . . Corruption Blocked . | . . . . Overload Shots . | . . . . Overflow Damage 195 | . . . 195 Projectiles 11 | . . . 11 Explosions 92 | . . . 92 Melee 92 | . . . 92 Knockbacks 2 | . . . 2 Impact 2 | . . . 2 Kinetic . | . . . . Secondary . | . . . . Self-Inflicted Damage 234 | . . . 234 Shots 4 | . . . 4 Rammed . | . . . . Targets Rammed . | . . . . Kicked . | . . . . Crushed . | . . . . Highest Temperature 258 | 40 173 48 258 Average Temperature 58 | 23 78 20 68 Received Heat Transfer 999 | . 102 141 756 Siege Activations . | . . . . Martial Activations . | . . . . Shielding Activations . | . . . . Robots Disrupted . | . . . . Combat Hostiles . | . . . . Robots Corrupted 3 | . . . 3 Combat Hostiles 3 | . . . 3 Parts Fried 4 | . . . 4 Impact Corruptions 4 | . . . 4 Robots Melted . | . . . . Combat Hostiles . | . . . . Parts Melted 1 | . 1 . . Heat Transferred 1418 | 225 400 608 185 Parts Sabotaged . | . . . . Parts Stolen . | . . . . Parts Stripped . | . . . . Power Chain Reactions . | . . . . Alert | -11 -10 -10 -8 ------- Run | Yrd Mat Sub Mat Maximum Alert Level 1 | . . . 1 Low Security (%) 91 | 100 100 . 86 Level 1 8 | . . . 13 Level 2 . | . . . . Level 3 . | . . . . Level 4 . | . . . . Level 5 . | . . . . High Security . | . . . . Max Security . | . . . . Peak Influence 378 | 10 95 . 378 Initial . | . . . . Average 82 | 1 45 . 108 Influence Increases 949 | 20 125 40 764 Destroy 0b10 Robot/C 540 | . 100 40 400 Destroy 0b10 Robot/NC 50 | 20 . . 30 Destroy Leader 92 | . 20 . 72 Successful Hack 5 | . 5 . . Disable Machine 15 | . . . 15 Destroy Structure 37 | . . . 37 Partial Spotted 30 | . . . 30 Lose Combat Pursuer 180 | . . . 180 Influence Decreases 571 | 20 60 105 386 Entered New Map 32 | . . 32 . Time Decay 369 | 20 60 63 226 Lost Part 170 | . . 10 160 Squads Dispatched 2 | . . . 2 Investigation 1 | . . . 1 Extermination . | . . . . Reinforcement 1 | . . . 1 Assault . | . . . . Garrison . | . . . . Intercept . | . . . . Searches Triggered . | . . . . Construction Impeded . | . . . . Haulers Reinforced . | . . . . Active Scanning Responses . | . . . . Cargo Convoy Interrupts . | . . . . Stealth | -11 -10 -10 -8 --------- Run | Yrd Mat Sub Mat Distress Signals 2 | . . . 2 Communications Jammed . | . . . . Distress Signals . | . . . . Times Spotted 50 | . 6 9 35 Peak Tracking Total 13 | . 4 2 13 Tactical Retreats 4 | . . 1 3 Traps | -11 -10 -10 -8 ------- Run | Yrd Mat Sub Mat Traps Triggered 1 | . . . 1 Indirectly . | . . . . Trap Hack Attempts . | . . . . Triggered . | . . . . Disarmed . | . . . . Reprogrammed . | . . . . Reused . | . . . . Traps Extracted . | . . . . Installed . | . . . . Triggered . | . . . . Machines | -11 -10 -10 -8 ---------- Run | Yrd Mat Sub Mat Machines Disabled 1 | . . . 1 Max in Single Turn 1 | . . . 1 Machines Repaired . | . . . . Machines Dismantled . | . . . . Machines Sabotaged . | . . . . Overloaded Fab Kills . | . . . . Hacking | -11 -10 -10 -8 --------- Run | Yrd Mat Sub Mat Machines Accessed 6 | . 1 3 2 Terminals 2 | . 1 . 1 Fabricators . | . . . . Repair Stations . | . . . . Recycling Units 1 | . . . 1 Scanalyzers . | . . . . Garrison Access . | . . . . Total Hacks 13 | . 1 8 4 Successful 11 | . 1 8 2 Failed 2 | . . . 2 Catastrophic . | . . . . Database Lockouts . | . . . . Manual 4 | . 1 . 3 Terminals 4 | . 1 . 3 Fabricators . | . . . . Repair Stations . | . . . . Recycling Units 1 | . . . 1 Scanalyzers . | . . . . Garrison Access . | . . . . Terminal Hacks 8 | . . 8 . Record 6 | . . 6 . Open Door 1 | . . 1 . Release Object 1 | . . 1 . Fabricator Hacks . | . . . . Repair Station Hacks . | . . . . Recycling Unit Hacks 1 | . . . 1 Retrieve Components 1 | . . . 1 Scanalyzer . | . . . . Garrison Access Hacks . | . . . . Unauthorized Hacks 2 | . 1 . 1 Terminals 2 | . 1 . 1 Botnet 2 | . 1 . 1 Fabricators . | . . . . Repair Stations . | . . . . Recycling Units . | . . . . Scanalyzers . | . . . . Garrison Access . | . . . . Data Cores Recovered . | . . . . Used . | . . . . Hacking Detections 2 | . 1 . 1 Full Trace Events . | . . . . Feedback Events . | . . . . Feedback Blocked . | . . . . Robot Schematics Acquired . | . . . . Robots Built . | . . . . Authchips . | . . . . Time . | . . . . Total Robot Build Rating . | . . . . Part Schematics Acquired . | . . . . Parts Built . | . . . . Authchips . | . . . . Time . | . . . . Total Part Build Rating . | . . . . Part Studies Acquired . | . . . . Parts Repaired . | . . . . Time . | . . . . Parts Recycled . | . . . . Recycled Matter . | . . . . Retrieved Matter . | . . . . Retrieved Components 9 | . . . 9 Parts Scanalyzed . | . . . . Part Schematics Acquired . | . . . . Parts Damaged . | . . . . Bothacking | -11 -10 -10 -8 ------------ Run | Yrd Mat Sub Mat Used RIF Installer . | . . . . Robots Hacked . | . . . . Non-combat . | . . . . Combat . | . . . . Robot Hacks Applied . | . . . . Relay Couplers Released . | . . . . Fabnet Peak Effective % . | . . . . Robots Rewired . | . . . . Allies Hacked . | . . . . Hacks Repelled . | . . . . Allies | -11 -10 -10 -8 -------- Run | Yrd Mat Sub Mat Total Allies . | . . . . Largest Group . | . . . . Highest-Rated Group . | . . . . Highest-Rated Ally . | . . . . Total Orders . | . . . . Ally Attacks . | . . . . Total Damage . | . . . . Kills . | . . . . Allies Corrupted . | . . . . Allies Melted . | . . . . Intel | -11 -10 -10 -8 ------- Run | Yrd Mat Sub Mat Active Infowar (turns) 1825 | 19 182 1371 253 Seismic 1825 | 19 182 1371 253 Robot Analysis Total . | . . . . Derelict Logs Recovered 1 | . . 1 . Drone Launches . | . . . . Drone Recoveries . | . . . . Exploration | -11 -10 -10 -8 ------------- Run | Yrd Mat Sub Mat Turns Passed 2311 | 124 182 1371 634 Spaces Moved 1641 | 51 79 1138 373 Core 75 | 1 . . 74 Treads 315 | 50 79 186 . Legs . | . . . . Wheels 1231 | . . 952 279 Hover . | . . . . Flight 20 | . . . 20 Fastest Speed 50 | 50 160 90 50 Average Speed 106 | 157 160 101 101 Slowest Speed 275 | 160 160 160 275 Overloaded Moves . | . . . . Propulsion Burnouts . | . . . . Robots Hopped . | . . . . Potential Cave-ins . | . . . . Cave-ins Triggered . | . . . . Exploration Rate (%) 24 | 4 9 53 33 Regions Visited 3 Branch Regions 1 Pre-discovered Areas 2 | . . 2 . Known Exits Taken . | . . . . Unknown Exits Taken 3 | 1 1 1 . Scrap Searched 5 | . . 5 . Spaces Dug . | . . . . Terrain Destroyed 46 | . . 2 44 Melee . | . . . . Projectile 5 | . . 2 3 AOE 41 | . . . 41 Terrain Rammed . | . . . . Walls Destroyed . | . . . . Machines Disabled . | . . . . Actions | -11 -10 -10 -8 --------- Run | Yrd Mat Sub Mat Total 1962 | 71 104 1271 516 Wait 89 | . 9 39 41 Move 1638 | 50 78 1137 373 Hop . | . . . . Pick Up 24 | 3 . 13 8 Fast Attach 11 | 7 . 1 3 Attach 18 | . . 5 13 Detach 4 | . . 1 3 Swap 5 | . . 3 2 Drop 11 | . . 8 3 Fire 149 | 11 17 64 57 Melee 13 | . . . 13 Ram . | . . . . Kick . | . . . . Crush . | . . . . Escape Stasis . | . . . . Rewire . | . . . . Trap . | . . . . Miscellaneous . | . . . . Route ------- -11/Scrapyard -10/Materials -10/Subcaves (discovered 2 exits: *Mat x2) -8/Materials History --------- Turn | Location | Event 18 | -11/Scrapyard | Discovered new exit (range 15) 125 | -11/Scrapyard | Entered Materials 292 | -10/Materials | Discovered new exit (range 8) 307 | -10/Materials | Entered Subcaves 317 | -10/Subcaves | Build established: Mutant 511 | -10/Subcaves | Visited Clippyterm 516 | -10/Subcaves | Learned Research machine intel 516 | -10/Subcaves | Learned 40 Factory zone layouts 1080 | -10/Subcaves | A swath of the cavern ceiling suddenly collapsed 1121 | -10/Subcaves | Learned location of Recycling (-9) 1171 | -10/Subcaves | Learned location of Zion (-6) 1171 | -10/Subcaves | Met a Zionite searching for "candidates" 1188 | -10/Subcaves | Shifting Twisted Machinery released Scrap Shield 1189 | -10/Subcaves | Shifting Twisted Machinery released Battle Rifle 1220 | -10/Subcaves | Discovered new exit (range 10) 1336 | -10/Subcaves | Discovered new exit (range 14) 1443 | -10/Subcaves | Disturbed a concealed Subdweller 1497 | -10/Subcaves | Disturbed a concealed Subdweller 1500 | -10/Subcaves | Core integrity fell below 50% 1678 | -10/Subcaves | Entered Materials 1678 | -8/Materials | Evolved 4 slots: Propulsion x1, Utility x2, Weapon x1 2011 | -8/Materials | Lost 7 parts (2p3n1u1w) 2161 | -8/Materials | Lost 7 parts (1p2n1u3w) 2193 | -8/Materials | Core integrity fell below 50% 2271 | -8/Materials | Core integrity fell below 20% 2312 | -8/Materials | Destroyed by G-47 Trooper with Particle Gun Last Messages --------------- 02291_ Acquired 38 matter. 02303_ Adv. Heat Sink destroyed. 02303_ Critical hit (Burn: +37). 02304_ Destroyed Imp. Heat Sink. 02304_ G-47 Trooper system corrupted by crushing effect. 02307_ Destroyed Particle Gun. 02307_ G-47 Trooper system corrupted by crushing effect. 02308_ G-47 Trooper system terminally corrupted. 02308_ Lgt. Nuclear Core fried. 02308_ Aluminum Leg fried. 02310_ Acquired 28 matter. 02311_ G-47 Trooper suffers critical hit (Smash). 02311_ Destroyed Aluminum Leg. 02311_ G-47 Trooper system corrupted by crushing effect. 02312_ G-47 Trooper system terminally corrupted. 02312_ Aluminum Leg fried. Map ----- +----------------------------------------------------+ | | | | | | | | | | | | | | | | | | | | | | | | | | | | | | | | | ????????????????????????#############????????????? | | ???????????????????????? !#????????????? | | ???????????????????????# """ """ #????????????? | | ???????????????????????# """ """ #????????????? | | ???????????????????????# """ """ ! #????????????? | | ???????????????????????# #????????????? | | ???????????????????????#######+######????????????? | | ##?###?????????????????????# #???????????????? | | ] / ????????############## #???????????????? | | # #????????# r g%@ T #???????????????? | | " / #????????# ######## #???????????????? | | " # #????????# #??????# #???????????????? | | "??# #????????# #??????#######???????????????? | | ???# ########## #????????????????????????????? | | ???# #????????????????????????????? | | #??# ###### #????????????????????????????? | | ?# ""#??# #????????????????????????????? | | ?# ""#??# #????????????????????????????? | | " # T"#?? ????????????????????????????? | | T # ""#?? #???????????????????????????? | | " / ""#?? T +???????????????????????????? | | # ###?# #???????????????????????????? | | #### [#???# #???????????????????????????? | | ??# #???## ##???????????????????????????? | | ??# #????# #????????????????????????????? | | ??# ######????? #????????????????????????????? | | ??# #?????????? ? #????????????????????????????? | | #?# #?????????? ???????????????????????????????? | | ?# #??????????????????????????????????????????? | | # ########### ???????????????????????????????? | | # ??????????????????????????????? | | " + ??????????????????????????????? | | " # ??????????????????????????????? | | " # ##############+???#????????????????????????? | +----------------------------------------------------+ Best States ------------- Heat Dissipation 50 Energy Generation 14 Energy Capacity 250 Matter Stores 300 Matter Capacity 300 Sight Range 16 Terrain Scan Density 110 Evasion (%) 50 Recoil Reduction 4 Offensive Hacking 11 Defensive Hacking 11 Item Schematics ----------------- None Robot Schematics ------------------ None Fabricated ------------ Nothing Repaired ---------- Nothing Studied --------- None Alien Tech Used ----------------- None Achievements -------------- None Challenges ------------ None Game ------ Seed BlanketGlidesysCyclogen Manual? 0 Play Time 00:20:04 Cumulative 59.3 hours Start 2026.03.10 @ 15:02:44 End 2026.03.10 @ 15:25:41 Sessions 1 Manual Loads 0 Difficulty Rogue Special Mode None Game No. 137 Rogue 137 Adventurer 0 Explorer 0 Win Type - Total 0 Types 0/0/0/0/0/0/0/0/0/0 Lore% 35 Gallery% 41 Achievement% 33 Wizard Run 0 Options --------- Layout 2 ASCII 0 Keyboard 1 Movement Arrows Keybinds 0 Fullscreen 1 Font 24/Smallcaps Map View 50x44 Zoom Use 0% Tactical HUD 1 Map Filters NONE Filters NONE Steam 1 RUN: fbddfa54-64ca-4102-a93a-2d2bb6cc0323